[Event "Titled Tuesday Blitz February 14 Early 2023"]
[White "Murzin, Volodar"]
[Black "Bluebaum, Matthias"]
[WhiteFideId "44155573"]
[BlackFideId "24651516"]
[WhiteElo "2604"]
[BlackElo "2669"]
[Result "1-0"]
[Round "07"]
[TimeControl "180+2"]
[Date "2023.02.15"]
[WhiteClock "0:00:32"]
[BlackClock "0:00:47"]

1. e4 {[%clk 0:02:51]}  e6 {[%clk 0:03:00]} 2. d3 {[%clk 0:02:50]}  d5 {[%clk 0:03:00]} 3. Qe2 {[%clk 0:02:51]}  Nc6 {[%clk 0:03:00]} 4. Nf3 {[%clk 0:02:50]}  e5 {[%clk 0:03:01]} 5. exd5 {[%clk 0:02:50]}  Qxd5 {[%clk 0:03:02]} 6. Nc3 {[%clk 0:02:50]}  Qa5 {[%clk 0:03:02]} 7. d4 {[%clk 0:02:48]}  Bb4 {[%clk 0:02:55]} 8. Bd2 {[%clk 0:02:46]}  Bg4 {[%clk 0:02:54]} 9. d5 {[%clk 0:02:46]}  Bxc3 {[%clk 0:02:52]} 10. dxc6 {[%clk 0:02:45]}  Bxd2+ {[%clk 0:02:51]} 11. Qxd2 {[%clk 0:02:46]}  Qxd2+ {[%clk 0:02:52]} 12. Nxd2 {[%clk 0:02:46]}  bxc6 {[%clk 0:02:51]} 13. f3 {[%clk 0:02:13]}  Be6 {[%clk 0:02:51]} 14. O-O-O {[%clk 0:02:12]}  Ne7 {[%clk 0:02:49]} 15. Bc4 {[%clk 0:02:11]}  Nd5 {[%clk 0:02:41]} 16. Rhe1 {[%clk 0:02:09]}  f6 {[%clk 0:02:41]} 17. Ne4 {[%clk 0:02:02]}  O-O {[%clk 0:02:41]} 18. Rd2 {[%clk 0:01:54]}  Rfd8 {[%clk 0:02:33]} 19. Red1 {[%clk 0:01:54]}  Re8 {[%clk 0:02:09]} 20. Nc5 {[%clk 0:01:43]}  Bf7 {[%clk 0:02:09]} 21. Ba6 {[%clk 0:01:43]}  Rab8 {[%clk 0:01:55]} 22. Bb7 {[%clk 0:01:41]}  Ne3 {[%clk 0:01:56]} 23. Re1 {[%clk 0:01:34]}  Nc4 {[%clk 0:01:56]} 24. Rd7 {[%clk 0:01:33]}  Na5 {[%clk 0:01:55]} 25. Rxc7 {[%clk 0:01:32]}  Nxb7 {[%clk 0:01:53]} 26. Nxb7 {[%clk 0:01:33]}  Kf8 {[%clk 0:01:31]} 27. Rd1 {[%clk 0:01:28]}  Bd5 {[%clk 0:01:30]} 28. c4 {[%clk 0:00:54]}  Bxc4 {[%clk 0:01:29]} 29. Nd6 {[%clk 0:00:40]}  Be2 {[%clk 0:01:20]} 30. Nxe8 {[%clk 0:00:39]}  Bxd1 {[%clk 0:01:20]} 31. Nxg7 {[%clk 0:00:40]}  Be2 {[%clk 0:01:13]} 32. Nh5 {[%clk 0:00:39]}  f5 {[%clk 0:01:07]} 33. Nf6 {[%clk 0:00:27]}  f4 {[%clk 0:01:02]} 34. Nd7+ {[%clk 0:00:26]}  Ke7 {[%clk 0:01:02]} 35. Nxb8+ {[%clk 0:00:27]}  Kd6 {[%clk 0:01:03]} 36. Rxc6+ {[%clk 0:00:26]}  Kd5 {[%clk 0:01:02]} 37. Rc2 {[%clk 0:00:27]}  Bf1 {[%clk 0:01:03]} 38. Rd2+ {[%clk 0:00:27]}  Ke6 {[%clk 0:01:03]} 39. Nc6 {[%clk 0:00:27]}  a6 {[%clk 0:01:02]} 40. Kd1 {[%clk 0:00:27]}  Bb5 {[%clk 0:01:01]} 41. Nb4 {[%clk 0:00:25]}  Bf1 {[%clk 0:00:59]} 42. Ke1 {[%clk 0:00:26]}  Bb5 {[%clk 0:00:59]} 43. Kf2 {[%clk 0:00:26]}  Bc4 {[%clk 0:00:58]} 44. b3 {[%clk 0:00:26]}  Bb5 {[%clk 0:00:59]} 45. a4 {[%clk 0:00:27]}  Be8 {[%clk 0:00:58]} 46. Nxa6 {[%clk 0:00:27]}  Kf6 {[%clk 0:00:59]} 47. Nc5 {[%clk 0:00:28]}  h5 {[%clk 0:00:57]} 48. Ne4+ {[%clk 0:00:29]}  Ke7 {[%clk 0:00:57]} 49. a5 {[%clk 0:00:30]}  Bb5 {[%clk 0:00:57]} 50. Rd5 {[%clk 0:00:31]}  Ba6 {[%clk 0:00:55]} 51. Rxe5+ {[%clk 0:00:31]}  Kf8 {[%clk 0:00:55]} 52. Rxh5 {[%clk 0:00:32]}  Kg7 {[%clk 0:00:55]} 53. Rf5 {[%clk 0:00:33]}  Bc8 {[%clk 0:00:55]} 54. Rxf4 {[%clk 0:00:34]}  Kg6 {[%clk 0:00:55]} 55. Ke3 {[%clk 0:00:35]}  Bb7 {[%clk 0:00:55]} 56. Kd4 {[%clk 0:00:35]}  Ba8 {[%clk 0:00:56]} 57. Kc5 {[%clk 0:00:35]}  Kh5 {[%clk 0:00:56]} 58. b4 {[%clk 0:00:35]}  Bb7 {[%clk 0:00:56]} 59. b5 {[%clk 0:00:36]}  Bc8 {[%clk 0:00:56]} 60. a6 {[%clk 0:00:36]}  Kh6 {[%clk 0:00:55]} 61. Nd6 {[%clk 0:00:34]}  Be6 {[%clk 0:00:54]} 62. a7 {[%clk 0:00:35]}  Kg7 {[%clk 0:00:54]} 63. a8=Q {[%clk 0:00:33]}  Kg6 {[%clk 0:00:51]} 64. b6 {[%clk 0:00:32]}  Kg5 {[%clk 0:00:50]} 65. Qf8 {[%clk 0:00:33]}  Bf7 {[%clk 0:00:49]} 66. Rf5+ {[%clk 0:00:31]}  Kh4 {[%clk 0:00:47]} 67. Qh6+ {[%clk 0:00:31]}  Bh5 {[%clk 0:00:47]} 68. Qxh5# {[%clk 0:00:32]} 1-0


[Site "https://www.chess.com"]

[Event "Titled Tuesday Blitz February 14 Early 2023"]
[White "Boruchovsky, Avital"]
[Black "Pranav, V"]
[WhiteFideId "2800055"]
[BlackFideId "25060783"]
[WhiteElo "2539"]
[BlackElo "2597"]
[Result "0-1"]
[Round "07"]
[TimeControl "180+2"]
[Date "2023.02.15"]
[WhiteClock "0:00:04"]
[BlackClock "0:00:06"]

1. c4 {[%clk 0:03:00]}  e5 {[%clk 0:02:59]} 2. Nc3 {[%clk 0:03:00]}  Nc6 {[%clk 0:02:59]} 3. g3 {[%clk 0:03:00]}  g6 {[%clk 0:03:00]} 4. Bg2 {[%clk 0:03:00]}  Bg7 {[%clk 0:03:01]} 5. e3 {[%clk 0:02:58]}  d6 {[%clk 0:03:01]} 6. Nge2 {[%clk 0:02:58]}  Nge7 {[%clk 0:03:01]} 7. d4 {[%clk 0:02:58]}  O-O {[%clk 0:03:02]} 8. O-O {[%clk 0:02:58]}  exd4 {[%clk 0:03:01]} 9. Nxd4 {[%clk 0:02:58]}  Nxd4 {[%clk 0:03:00]} 10. exd4 {[%clk 0:02:59]}  Nf5 {[%clk 0:03:01]} 11. Ne2 {[%clk 0:02:53]}  h5 {[%clk 0:02:59]} 12. h3 {[%clk 0:02:52]}  Re8 {[%clk 0:02:59]} 13. Re1 {[%clk 0:02:52]}  c6 {[%clk 0:02:58]} 14. Bf4 {[%clk 0:02:47]}  Bd7 {[%clk 0:02:53]} 15. Qd2 {[%clk 0:02:46]}  Qb6 {[%clk 0:02:28]} 16. Rad1 {[%clk 0:02:41]}  Rad8 {[%clk 0:02:27]} 17. Bg5 {[%clk 0:02:31]}  Rc8 {[%clk 0:02:24]} 18. c5 {[%clk 0:02:24]}  Qa6 {[%clk 0:01:36]} 19. g4 {[%clk 0:02:22]}  hxg4 {[%clk 0:01:05]} 20. hxg4 {[%clk 0:02:23]}  Nh6 {[%clk 0:01:03]} 21. Bxh6 {[%clk 0:01:50]}  Bxh6 {[%clk 0:01:04]} 22. Qxh6 {[%clk 0:01:50]}  Rxe2 {[%clk 0:01:04]} 23. Bf1 {[%clk 0:01:49]}  Rxe1 {[%clk 0:00:58]} 24. Rxe1 {[%clk 0:01:49]}  Qxa2 {[%clk 0:00:58]} 25. cxd6 {[%clk 0:01:46]}  Qd5 {[%clk 0:00:33]} 26. Qf4 {[%clk 0:01:40]}  c5 {[%clk 0:00:29]} 27. dxc5 {[%clk 0:00:56]}  Bc6 {[%clk 0:00:26]} 28. f3 {[%clk 0:00:51]}  Qxc5+ {[%clk 0:00:24]} 29. Kg2 {[%clk 0:00:49]}  Rd8 {[%clk 0:00:06]} 30. Bc4 {[%clk 0:00:43]}  Rf8 {[%clk 0:00:04]} 31. Re7 {[%clk 0:00:39]}  Bd5 {[%clk 0:00:03]} 32. Bxd5 {[%clk 0:00:39]}  Qxd5 {[%clk 0:00:04]} 33. d7 {[%clk 0:00:38]}  Kg7 {[%clk 0:00:04]} 34. g5 {[%clk 0:00:35]}  Kg8 {[%clk 0:00:02]} 35. Qf6 {[%clk 0:00:34]}  Qd2+ {[%clk 0:00:02]} 36. Kg3 {[%clk 0:00:34]}  Qd1 {[%clk 0:00:02]} 37. Rxf7 {[%clk 0:00:24]}  Qg1+ {[%clk 0:00:03]} 38. Kf4 {[%clk 0:00:25]}  Qc1+ {[%clk 0:00:03]} 39. Ke4 {[%clk 0:00:20]}  Qc4+ {[%clk 0:00:04]} 40. Ke5 {[%clk 0:00:16]}  Qc5+ {[%clk 0:00:03]} 41. Ke4 {[%clk 0:00:09]}  Qc4+ {[%clk 0:00:03]} 42. Ke5 {[%clk 0:00:09]}  Qe2+ {[%clk 0:00:03]} 43. Kd6 {[%clk 0:00:09]}  Qd2+ {[%clk 0:00:02]} 44. Kc7 {[%clk 0:00:09]}  Rxf7 {[%clk 0:00:02]} 45. Qxf7+ {[%clk 0:00:08]}  Kxf7 {[%clk 0:00:03]} 46. d8=Q {[%clk 0:00:09]}  Qc2+ {[%clk 0:00:03]} 47. Kxb7 {[%clk 0:00:09]}  Qxb2+ {[%clk 0:00:03]} 48. Kxa7 {[%clk 0:00:09]}  Qa3+ {[%clk 0:00:03]} 49. Kb8 {[%clk 0:00:09]}  Qxf3 {[%clk 0:00:03]} 50. Qd7+ {[%clk 0:00:09]}  Kg8 {[%clk 0:00:03]} 51. Kc8 {[%clk 0:00:08]}  Qc3+ {[%clk 0:00:02]} 52. Kd8 {[%clk 0:00:08]}  Qa5+ {[%clk 0:00:02]} 53. Ke8 {[%clk 0:00:08]}  Qxg5 {[%clk 0:00:03]} 54. Qf7+ {[%clk 0:00:08]}  Kh8 {[%clk 0:00:03]} 55. Qd7 {[%clk 0:00:06]}  Qf6 {[%clk 0:00:03]} 56. Qh3+ {[%clk 0:00:04]}  Kg7 {[%clk 0:00:03]} 57. Qd7+ {[%clk 0:00:05]}  Kg8 {[%clk 0:00:03]} 58. Qd5+ {[%clk 0:00:05]}  Kh7 {[%clk 0:00:04]} 59. Qd7+ {[%clk 0:00:05]}  Kh6 {[%clk 0:00:04]} 60. Qh3+ {[%clk 0:00:05]}  Kg5 {[%clk 0:00:05]} 61. Qg3+ {[%clk 0:00:05]}  Kh5 {[%clk 0:00:05]} 62. Qh3+ {[%clk 0:00:05]}  Qh4 {[%clk 0:00:06]} 63. Qf3+ {[%clk 0:00:05]}  Qg4 {[%clk 0:00:06]} 64. Qd5+ {[%clk 0:00:06]}  Kh6 {[%clk 0:00:06]} 65. Qd2+ {[%clk 0:00:06]}  Qg5 {[%clk 0:00:06]} 66. Qh2+ {[%clk 0:00:06]}  Qh5 {[%clk 0:00:06]} 67. Qf4+ {[%clk 0:00:06]}  g5+ {[%clk 0:00:06]} 68. Qf7 {[%clk 0:00:04]}  Qxf7+ {[%clk 0:00:06]} 0-1


[Site "https://www.chess.com"]

[Event "Titled Tuesday Blitz February 14 Early 2023"]
[White "Zemlyanskii, Ivan"]
[Black "Korobov, Anton"]
[WhiteFideId "24249971"]
[BlackFideId "14105730"]
[WhiteElo "2300"]
[BlackElo "2664"]
[Result "0-1"]
[Round "07"]
[TimeControl "180+2"]
[Date "2023.02.15"]
[WhiteClock "0:00:19"]
[BlackClock "0:00:43"]

1. d4 {[%clk 0:03:00]}  Nf6 {[%clk 0:02:58]} 2. c4 {[%clk 0:02:59]}  e6 {[%clk 0:02:58]} 3. Bf4 {[%clk 0:02:59]}  c5 {[%clk 0:02:55]} 4. d5 {[%clk 0:02:59]}  Qb6 {[%clk 0:02:54]} 5. Nc3 {[%clk 0:02:36]}  exd5 {[%clk 0:02:36]} 6. cxd5 {[%clk 0:02:29]}  Qxb2 {[%clk 0:02:36]} 7. Rc1 {[%clk 0:02:22]}  c4 {[%clk 0:02:19]} 8. Rc2 {[%clk 0:01:46]}  Qb4 {[%clk 0:02:05]} 9. Nf3 {[%clk 0:01:36]}  Bc5 {[%clk 0:01:51]} 10. e3 {[%clk 0:01:29]}  Ne4 {[%clk 0:01:51]} 11. Be5 {[%clk 0:01:24]}  O-O {[%clk 0:01:42]} 12. a3 {[%clk 0:01:16]}  Qa5 {[%clk 0:01:38]} 13. Bxc4 {[%clk 0:01:13]}  d6 {[%clk 0:01:37]} 14. Bd4 {[%clk 0:01:14]}  Bf5 {[%clk 0:01:33]} 15. O-O {[%clk 0:01:05]}  Nd7 {[%clk 0:01:32]} 16. Nh4 {[%clk 0:00:48]}  Nxc3 {[%clk 0:01:14]} 17. Rxc3 {[%clk 0:00:49]}  Bg6 {[%clk 0:01:10]} 18. f4 {[%clk 0:00:45]}  Rfe8 {[%clk 0:01:04]} 19. f5 {[%clk 0:00:43]}  Bh5 {[%clk 0:01:02]} 20. Qd2 {[%clk 0:00:34]}  Nf6 {[%clk 0:00:57]} 21. h3 {[%clk 0:00:22]}  Ne4 {[%clk 0:00:55]} 22. Qb2 {[%clk 0:00:21]}  Bxd4 {[%clk 0:00:55]} 23. exd4 {[%clk 0:00:20]}  Qxc3 {[%clk 0:00:55]} 24. Qxc3 {[%clk 0:00:21]}  Nxc3 {[%clk 0:00:55]} 25. g4 {[%clk 0:00:22]}  Rac8 {[%clk 0:00:55]} 26. Bb3 {[%clk 0:00:21]}  Re3 {[%clk 0:00:53]} 27. gxh5 {[%clk 0:00:21]}  Ne2+ {[%clk 0:00:49]} 28. Kf2 {[%clk 0:00:21]}  Rxb3 {[%clk 0:00:49]} 29. Kxe2 {[%clk 0:00:21]}  Rc2+ {[%clk 0:00:49]} 30. Kd1 {[%clk 0:00:21]}  Ra2 {[%clk 0:00:49]} 31. Kc1 {[%clk 0:00:19]}  Ra1+ {[%clk 0:00:42]} 32. Kc2 {[%clk 0:00:17]}  Rxf1 {[%clk 0:00:43]} 33. Kxb3 {[%clk 0:00:18]}  Rf4 {[%clk 0:00:43]} 34. Ng2 {[%clk 0:00:19]}  Rxd4 {[%clk 0:00:42]} 35. Ne3 {[%clk 0:00:19]}  Rd3+ {[%clk 0:00:43]} 0-1


[Site "https://www.chess.com"]

[Event "Titled Tuesday Blitz February 14 Early 2023"]
[White "Ioannidis, Evgenios"]
[Black "Bharath Subramaniyam H"]
[WhiteFideId "4229274"]
[BlackFideId "46634827"]
[WhiteElo "2467"]
[BlackElo "2517"]
[Result "0-1"]
[Round "07"]
[TimeControl "180+2"]
[Date "2023.02.15"]
[WhiteClock "0:00:07"]
[BlackClock "0:00:16"]

1. d4 {[%clk 0:02:57]}  Nf6 {[%clk 0:02:59]} 2. c4 {[%clk 0:02:57]}  e6 {[%clk 0:02:57]} 3. Nc3 {[%clk 0:02:58]}  c5 {[%clk 0:02:57]} 4. d5 {[%clk 0:02:58]}  exd5 {[%clk 0:02:57]} 5. cxd5 {[%clk 0:02:58]}  d6 {[%clk 0:02:58]} 6. e4 {[%clk 0:02:59]}  g6 {[%clk 0:02:59]} 7. f4 {[%clk 0:02:59]}  Bg7 {[%clk 0:02:59]} 8. Bb5+ {[%clk 0:03:00]}  Nfd7 {[%clk 0:03:00]} 9. Be2 {[%clk 0:03:00]}  O-O {[%clk 0:02:59]} 10. Nf3 {[%clk 0:03:01]}  Na6 {[%clk 0:02:50]} 11. O-O {[%clk 0:03:00]}  Nc7 {[%clk 0:02:49]} 12. a4 {[%clk 0:02:58]}  Re8 {[%clk 0:02:47]} 13. Bd2 {[%clk 0:02:56]}  a6 {[%clk 0:02:46]} 14. Be1 {[%clk 0:02:56]}  Qe7 {[%clk 0:02:38]} 15. e5 {[%clk 0:02:53]}  Qf8 {[%clk 0:02:33]} 16. Bh4 {[%clk 0:02:38]}  dxe5 {[%clk 0:01:50]} 17. d6 {[%clk 0:02:38]}  Ne6 {[%clk 0:01:50]} 18. Be7 {[%clk 0:02:27]}  Rxe7 {[%clk 0:01:49]} 19. dxe7 {[%clk 0:02:28]}  Qxe7 {[%clk 0:01:49]} 20. Nd5 {[%clk 0:02:27]}  Qf8 {[%clk 0:01:47]} 21. fxe5 {[%clk 0:02:09]}  Nxe5 {[%clk 0:01:48]} 22. Kh1 {[%clk 0:01:32]}  Nxf3 {[%clk 0:01:43]} 23. Bxf3 {[%clk 0:01:30]}  Nd4 {[%clk 0:01:42]} 24. Nb6 {[%clk 0:01:26]}  Rb8 {[%clk 0:01:39]} 25. Nxc8 {[%clk 0:01:26]}  Rxc8 {[%clk 0:01:36]} 26. Bd5 {[%clk 0:01:25]}  Rc7 {[%clk 0:01:35]} 27. Qd3 {[%clk 0:01:20]}  Qd6 {[%clk 0:01:26]} 28. Qc4 {[%clk 0:01:14]}  Bf6 {[%clk 0:01:21]} 29. Rf2 {[%clk 0:01:00]}  b5 {[%clk 0:01:20]} 30. axb5 {[%clk 0:00:55]}  axb5 {[%clk 0:01:21]} 31. Qf1 {[%clk 0:00:55]}  Kg7 {[%clk 0:01:01]} 32. Re1 {[%clk 0:00:33]}  Nf5 {[%clk 0:00:36]} 33. Be4 {[%clk 0:00:29]}  Bd4 {[%clk 0:00:36]} 34. Rf3 {[%clk 0:00:24]}  Nh6 {[%clk 0:00:36]} 35. Qxb5 {[%clk 0:00:19]}  Ng4 {[%clk 0:00:33]} 36. g3 {[%clk 0:00:18]}  Re7 {[%clk 0:00:25]} 37. Qf1 {[%clk 0:00:17]}  Qe5 {[%clk 0:00:24]} 38. Re2 {[%clk 0:00:14]}  Qg5 {[%clk 0:00:17]} 39. Bd3 {[%clk 0:00:12]}  Ne3 {[%clk 0:00:17]} 40. Qc1 {[%clk 0:00:09]}  Qd5 {[%clk 0:00:17]} 41. Rf2 {[%clk 0:00:07]}  Ng4 {[%clk 0:00:17]} 42. Rf1 {[%clk 0:00:07]}  Ne5 {[%clk 0:00:17]} 43. Be2 {[%clk 0:00:07]}  Nxf3 {[%clk 0:00:17]} 44. Bxf3 {[%clk 0:00:08]}  Qe5 {[%clk 0:00:17]} 45. Qc4 {[%clk 0:00:08]}  Bxb2 {[%clk 0:00:17]} 46. Bd5 {[%clk 0:00:07]}  Bd4 {[%clk 0:00:16]} 47. Bxf7 {[%clk 0:00:07]}  Qe4+ {[%clk 0:00:16]} 0-1


[Site "https://www.chess.com"]

[Event "Titled Tuesday Blitz February 14 Early 2023"]
[White "Narayanan.S.L"]
[Black "Boyer, Mahel"]
[WhiteFideId "5058422"]
[BlackFideId "45102422"]
[WhiteElo "2660"]
[BlackElo "2489"]
[Result "1-0"]
[Round "07"]
[TimeControl "180+2"]
[Date "2023.02.15"]
[WhiteClock "0:00:58"]
[BlackClock "0:00:01"]

1. g3 {[%clk 0:02:58]}  e5 {[%clk 0:02:57]} 2. Bg2 {[%clk 0:02:58]}  g6 {[%clk 0:02:57]} 3. d4 {[%clk 0:02:57]}  exd4 {[%clk 0:02:57]} 4. Nf3 {[%clk 0:02:57]}  Bg7 {[%clk 0:02:56]} 5. Nxd4 {[%clk 0:02:57]}  d5 {[%clk 0:02:57]} 6. O-O {[%clk 0:02:57]}  Ne7 {[%clk 0:02:57]} 7. Nb3 {[%clk 0:02:53]}  O-O {[%clk 0:02:56]} 8. Nc3 {[%clk 0:02:54]}  a5 {[%clk 0:02:22]} 9. a4 {[%clk 0:02:51]}  c6 {[%clk 0:02:19]} 10. e4 {[%clk 0:02:50]}  dxe4 {[%clk 0:02:17]} 11. Nxe4 {[%clk 0:02:50]}  Nd5 {[%clk 0:02:05]} 12. Bg5 {[%clk 0:02:35]}  Qc7 {[%clk 0:02:04]} 13. c3 {[%clk 0:02:34]}  Bf5 {[%clk 0:02:01]} 14. Re1 {[%clk 0:02:31]}  Nd7 {[%clk 0:02:00]} 15. Nd4 {[%clk 0:02:27]}  Bxe4 {[%clk 0:01:59]} 16. Bxe4 {[%clk 0:02:27]}  N7f6 {[%clk 0:01:56]} 17. Bf3 {[%clk 0:02:27]}  Rfe8 {[%clk 0:01:56]} 18. Qb3 {[%clk 0:02:26]}  h6 {[%clk 0:01:53]} 19. Bd2 {[%clk 0:02:26]}  h5 {[%clk 0:01:51]} 20. Bg5 {[%clk 0:02:23]}  Nh7 {[%clk 0:01:46]} 21. Bd2 {[%clk 0:02:15]}  Nhf6 {[%clk 0:01:46]} 22. Rxe8+ {[%clk 0:02:05]}  Rxe8 {[%clk 0:01:45]} 23. Re1 {[%clk 0:02:06]}  Rxe1+ {[%clk 0:01:44]} 24. Bxe1 {[%clk 0:02:06]}  Qe7 {[%clk 0:00:45]} 25. Kf1 {[%clk 0:01:59]}  Ng4 {[%clk 0:00:44]} 26. Bxg4 {[%clk 0:01:32]}  hxg4 {[%clk 0:00:45]} 27. Qc2 {[%clk 0:01:33]}  Qc5 {[%clk 0:00:34]} 28. Ne2 {[%clk 0:01:24]}  Nf6 {[%clk 0:00:23]} 29. Qd3 {[%clk 0:01:16]}  b5 {[%clk 0:00:17]} 30. b4 {[%clk 0:01:12]}  axb4 {[%clk 0:00:12]} 31. cxb4 {[%clk 0:01:12]}  Qh5 {[%clk 0:00:13]} 32. a5 {[%clk 0:01:09]}  Qxh2 {[%clk 0:00:12]} 33. a6 {[%clk 0:01:09]}  Qh1+ {[%clk 0:00:07]} 34. Ng1 {[%clk 0:01:09]}  c5 {[%clk 0:00:06]} 35. Qd8+ {[%clk 0:00:57]}  Kh7 {[%clk 0:00:06]} 36. a7 {[%clk 0:00:57]}  Ne4 {[%clk 0:00:02]} 37. a8=Q {[%clk 0:00:58]}  Bd4 {[%clk 0:00:02]} 38. Qh4+ {[%clk 0:00:57]}  Qxh4 {[%clk 0:00:01]} 39. gxh4 {[%clk 0:00:58]} 1-0


[Site "https://www.chess.com"]

[Event "Titled Tuesday Blitz February 14 Early 2023"]
[White "Stoleriu, George"]
[Black "Durarbayli, Vasif"]
[WhiteFideId "1227505"]
[BlackFideId "13402935"]
[WhiteElo "2390"]
[BlackElo "2627"]
[Result "1-0"]
[Round "07"]
[TimeControl "180+2"]
[Date "2023.02.15"]
[WhiteClock "0:00:07"]
[BlackClock "0:00:03"]

1. e4 {[%clk 0:03:00]}  e5 {[%clk 0:02:59]} 2. Nf3 {[%clk 0:02:58]}  Nc6 {[%clk 0:02:59]} 3. Bb5 {[%clk 0:02:58]}  a6 {[%clk 0:03:00]} 4. Ba4 {[%clk 0:02:57]}  Nge7 {[%clk 0:03:00]} 5. O-O {[%clk 0:02:53]}  g6 {[%clk 0:03:01]} 6. d4 {[%clk 0:02:51]}  exd4 {[%clk 0:02:58]} 7. Nxd4 {[%clk 0:02:50]}  Bg7 {[%clk 0:02:58]} 8. Nxc6 {[%clk 0:02:45]}  Nxc6 {[%clk 0:02:59]} 9. Nc3 {[%clk 0:02:38]}  O-O {[%clk 0:02:57]} 10. Bf4 {[%clk 0:02:36]}  d6 {[%clk 0:02:52]} 11. Qd2 {[%clk 0:02:30]}  Na5 {[%clk 0:02:04]} 12. Bb3 {[%clk 0:02:09]}  Nxb3 {[%clk 0:01:52]} 13. axb3 {[%clk 0:02:09]}  Re8 {[%clk 0:01:52]} 14. Rfe1 {[%clk 0:01:57]}  Be6 {[%clk 0:01:44]} 15. Rad1 {[%clk 0:01:52]}  Qe7 {[%clk 0:01:27]} 16. Nd5 {[%clk 0:01:21]}  Bxd5 {[%clk 0:01:27]} 17. Qxd5 {[%clk 0:01:19]}  Rab8 {[%clk 0:01:24]} 18. c3 {[%clk 0:01:15]}  Qf8 {[%clk 0:00:57]} 19. h4 {[%clk 0:01:03]}  Re6 {[%clk 0:00:56]} 20. h5 {[%clk 0:01:01]}  Be5 {[%clk 0:00:50]} 21. Be3 {[%clk 0:00:51]}  gxh5 {[%clk 0:00:42]} 22. f4 {[%clk 0:00:36]}  c6 {[%clk 0:00:29]} 23. Qd3 {[%clk 0:00:36]}  Bg7 {[%clk 0:00:16]} 24. f5 {[%clk 0:00:37]}  Ree8 {[%clk 0:00:16]} 25. Bf4 {[%clk 0:00:37]}  Be5 {[%clk 0:00:15]} 26. Qg3+ {[%clk 0:00:20]}  Kh8 {[%clk 0:00:15]} 27. Rd3 {[%clk 0:00:12]}  Qe7 {[%clk 0:00:11]} 28. Bxe5+ {[%clk 0:00:10]}  dxe5 {[%clk 0:00:12]} 29. Red1 {[%clk 0:00:10]}  Rg8 {[%clk 0:00:12]} 30. Qh2 {[%clk 0:00:08]}  Rg5 {[%clk 0:00:08]} 31. Rd7 {[%clk 0:00:09]}  Qc5+ {[%clk 0:00:09]} 32. Kh1 {[%clk 0:00:09]}  Rbg8 {[%clk 0:00:09]} 33. Rd8 {[%clk 0:00:08]}  f6 {[%clk 0:00:04]} 34. Qh3 {[%clk 0:00:04]}  Qf2 {[%clk 0:00:03]} 35. R8d2 {[%clk 0:00:03]}  Qf4 {[%clk 0:00:03]} 36. Re2 {[%clk 0:00:02]}  h4 {[%clk 0:00:03]} 37. Rf1 {[%clk 0:00:02]}  Qg4 {[%clk 0:00:02]} 38. Qxg4 {[%clk 0:00:01]}  Rxg4 {[%clk 0:00:03]} 39. Rd1 {[%clk 0:00:01]}  Rg3 {[%clk 0:00:02]} 40. Rd6 {[%clk 0:00:01]}  h3 {[%clk 0:00:02]} 41. gxh3 {[%clk 0:00:02]}  Rg1+ {[%clk 0:00:03]} 42. Kh2 {[%clk 0:00:02]}  Rb1 {[%clk 0:00:01]} 43. Rxf6 {[%clk 0:00:02]}  Rgg1 {[%clk 0:00:01]} 44. Re6 {[%clk 0:00:02]}  Rh1+ {[%clk 0:00:02]} 45. Kg3 {[%clk 0:00:03]}  Rhg1+ {[%clk 0:00:02]} 46. Rg2 {[%clk 0:00:03]}  Rxg2+ {[%clk 0:00:02]} 47. Kxg2 {[%clk 0:00:04]}  Rxb2+ {[%clk 0:00:02]} 48. Kg3 {[%clk 0:00:04]}  Rxb3 {[%clk 0:00:03]} 49. Kg4 {[%clk 0:00:04]}  Rxc3 {[%clk 0:00:03]} 50. Kg5 {[%clk 0:00:05]}  Kg7 {[%clk 0:00:03]} 51. Re7+ {[%clk 0:00:04]}  Kf8 {[%clk 0:00:03]} 52. Rxb7 {[%clk 0:00:05]}  Rxh3 {[%clk 0:00:04]} 53. Kf6 {[%clk 0:00:05]}  Rh6+ {[%clk 0:00:04]} 54. Kxe5 {[%clk 0:00:06]}  c5 {[%clk 0:00:03]} 55. f6 {[%clk 0:00:06]}  Rh4 {[%clk 0:00:01]} 56. Kf5 {[%clk 0:00:06]}  c4 {[%clk 0:00:02]} 57. e5 {[%clk 0:00:07]}  c3 {[%clk 0:00:01]} 58. e6 {[%clk 0:00:07]}  Rh5+ {[%clk 0:00:01]} 59. Kg4 {[%clk 0:00:07]}  Rb5 {[%clk 0:00:01]} 60. Rc7 {[%clk 0:00:07]}  Rb4+ {[%clk 0:00:01]} 61. Kg5 {[%clk 0:00:06]}  Rb5+ {[%clk 0:00:01]} 62. Kh6 {[%clk 0:00:06]}  Rb8 {[%clk 0:00:01]} 63. Rxc3 {[%clk 0:00:06]}  Re8 {[%clk 0:00:02]} 64. Rc6 {[%clk 0:00:05]}  a5 {[%clk 0:00:02]} 65. Kxh7 {[%clk 0:00:05]}  a4 {[%clk 0:00:03]} 66. Kg6 {[%clk 0:00:06]}  a3 {[%clk 0:00:04]} 67. Kf5 {[%clk 0:00:06]}  Ra8 {[%clk 0:00:02]} 68. Rc1 {[%clk 0:00:03]}  a2 {[%clk 0:00:03]} 69. Rh1 {[%clk 0:00:04]}  Ra5+ {[%clk 0:00:02]} 70. Kg6 {[%clk 0:00:04]}  Kg8 {[%clk 0:00:01]} 71. f7+ {[%clk 0:00:05]}  Kf8 {[%clk 0:00:02]} 72. Rh8+ {[%clk 0:00:06]}  Ke7 {[%clk 0:00:02]} 73. f8=Q+ {[%clk 0:00:06]}  Kxe6 {[%clk 0:00:03]} 74. Qf6+ {[%clk 0:00:07]} 1-0


[Site "https://www.chess.com"]

[Event "Titled Tuesday Blitz February 14 Early 2023"]
[White "Carnicelli, Valerio"]
[Black "Pantsulaia, Levan"]
[WhiteFideId "856185"]
[BlackFideId "13602071"]
[WhiteElo "2370"]
[BlackElo "2570"]
[Result "0-1"]
[Round "07"]
[TimeControl "180+2"]
[Date "2023.02.15"]
[WhiteClock "0:00:01"]
[BlackClock "0:00:14"]

1. e4 {[%clk 0:03:00]}  c5 {[%clk 0:02:59]} 2. Nf3 {[%clk 0:03:00]}  a6 {[%clk 0:02:59]} 3. c4 {[%clk 0:02:59]}  e6 {[%clk 0:02:58]} 4. Nc3 {[%clk 0:02:58]}  Nc6 {[%clk 0:02:58]} 5. d4 {[%clk 0:02:58]}  cxd4 {[%clk 0:02:58]} 6. Nxd4 {[%clk 0:02:59]}  Bb4 {[%clk 0:02:56]} 7. a3 {[%clk 0:02:54]}  Bxc3+ {[%clk 0:02:55]} 8. bxc3 {[%clk 0:02:54]}  d6 {[%clk 0:02:54]} 9. Bd3 {[%clk 0:02:53]}  e5 {[%clk 0:02:52]} 10. Nxc6 {[%clk 0:02:51]}  bxc6 {[%clk 0:02:51]} 11. O-O {[%clk 0:02:51]}  Nf6 {[%clk 0:02:50]} 12. f4 {[%clk 0:02:49]}  O-O {[%clk 0:02:49]} 13. f5 {[%clk 0:02:47]}  h6 {[%clk 0:02:48]} 14. Ra2 {[%clk 0:02:43]}  a5 {[%clk 0:02:46]} 15. g4 {[%clk 0:02:41]}  Nh7 {[%clk 0:02:40]} 16. Rg2 {[%clk 0:02:31]}  Ba6 {[%clk 0:02:37]} 17. f6 {[%clk 0:02:27]}  Nxf6 {[%clk 0:02:23]} 18. g5 {[%clk 0:02:27]}  Nh7 {[%clk 0:02:23]} 19. Qh5 {[%clk 0:02:03]}  Kh8 {[%clk 0:01:58]} 20. Rxf7 {[%clk 0:01:54]}  Rxf7 {[%clk 0:01:59]} 21. Qxf7 {[%clk 0:01:55]}  hxg5 {[%clk 0:01:59]} 22. h4 {[%clk 0:01:43]}  Qb6+ {[%clk 0:01:55]} 23. Kh2 {[%clk 0:01:38]}  Rf8 {[%clk 0:01:55]} 24. Qh5 {[%clk 0:01:32]}  gxh4 {[%clk 0:01:46]} 25. Qxh4 {[%clk 0:01:23]}  Bc8 {[%clk 0:01:35]} 26. Qe7 {[%clk 0:00:56]}  Rg8 {[%clk 0:01:32]} 27. Qxd6 {[%clk 0:00:54]}  Nf6 {[%clk 0:01:32]} 28. Qxe5 {[%clk 0:00:25]}  Ng4+ {[%clk 0:01:22]} 29. Rxg4 {[%clk 0:00:25]}  Bxg4 {[%clk 0:01:23]} 30. Qg3 {[%clk 0:00:18]}  Bh5 {[%clk 0:01:20]} 31. Qh4 {[%clk 0:00:17]}  g6 {[%clk 0:01:19]} 32. Bf4 {[%clk 0:00:13]}  Qb2+ {[%clk 0:01:14]} 33. Kg1 {[%clk 0:00:05]}  Qxc3 {[%clk 0:01:13]} 34. Qg3 {[%clk 0:00:05]}  Re8 {[%clk 0:01:04]} 35. Bd6 {[%clk 0:00:03]}  Kh7 {[%clk 0:01:00]} 36. e5 {[%clk 0:00:03]}  Qd4+ {[%clk 0:00:57]} 37. Kh2 {[%clk 0:00:03]}  Re6 {[%clk 0:00:19]} 38. c5 {[%clk 0:00:03]}  Bg4 {[%clk 0:00:17]} 39. Qh4+ {[%clk 0:00:03]}  Kg7 {[%clk 0:00:18]} 40. Qg3 {[%clk 0:00:02]}  Re8 {[%clk 0:00:14]} 41. Bc2 {[%clk 0:00:01]}  Rh8+ {[%clk 0:00:14]} 0-1


[Site "https://www.chess.com"]